Cogmind - Beta 15 @@@ ROGUE MODE // 2025.07.14 @ 17:38:19 Player: Skysub Result: Destroyed by OT-Y6Z(R) with Subdweller Laser Performance ------------- Evolutions (0) 0 Regions Visited (2) 400 Robots Destroyed (19) 95 Value Destroyed (255) 255 Prototype IDs (0) 0 Alien Tech Used (0) 0 Bonus (0) 0 TOTAL SCORE: 750 Bonus ------- None Cogmind --------- Core Integrity 0/250 Matter 240/300 Energy 100/100 System Corruption 2% Temperature Cool (6) Movement Rolling (110) Ox2 Location -10/Subcaves Parts ------- > --- POWER (1) -------- (None) > --- PROPULSION (2) --- Wheel > --- UTILITY (2) ------ Large Storage Unit > --- WEAPON (2) ------- Light Assault Rifle Light Assault Rifle > --- INVENTORY (15) --- Small Storage Unit Structural Scanner Light Assault Rifle Mining Laser Peak State ------------ > --- POWER ------------ Light Ion Engine > --- PROPULSION ------- Light Treads Light Treads > --- UTILITY ---------- Small Storage Unit Large Storage Unit > --- WEAPON ----------- Light Assault Rifle Light Assault Rifle > --- INVENTORY -------- Ion Engine Wheel Mining Laser [Rating: 7] Favorites ----------- Power Light Ion Engine Engine Light Ion Engine Propulsion Light Treads Treads Light Treads Wheel Wheel Utility Large Storage Unit Device Structural Scanner Storage Large Storage Unit Protection Light Armor Plating Weapon Light Assault Rifle Ballistic Gun Light Assault Rifle Special Weapon Mining Laser Build | -11 -10 -10 ------- Run | Yrd Mat Sub Slots Evolved . | . . . Power . | . . . Propulsion . | . . . Utility . | . . . Weapon . | . . . Parts Attached 14 | 7 3 4 Power 2 | 1 1 . Engine 2 | 1 1 . Core . | . . . Reactor . | . . . Propulsion 3 | 3 . . Treads 2 | 2 . . Leg . | . . . Wheel 1 | 1 . . Hover . | . . . Flight . | . . . Utility 5 | 1 2 2 Device 1 | . . 1 Storage 2 | 1 1 . Processor . | . . . Hackware . | . . . Protection 2 | . 1 1 Artifact . | . . . Weapon 4 | 2 . 2 Energy Gun . | . . . Energy Cannon . | . . . Ballistic Gun 3 | 2 . 1 Ballistic Cannon . | . . . Launcher . | . . . Special Weapon 1 | . . 1 Impact Weapon . | . . . Slashing Weapon . | . . . Piercing Weapon . | . . . Special Melee Weapon . | . . . Unidentified Prototypes . | . . . Parts Lost 6 | . 2 4 Power 2 | . 1 1 Propulsion 2 | . 1 1 Utility 2 | . . 2 Weapon . | . . . Highest Loss Streak 3 | . 1 3 To Critical Strikes . | . . . Average Backups 4 | 1 4 4 Power . | . . . Propulsion . | . . . Utility 1 | . 1 2 Weapon 1 | . 1 2 Tool/Special . | . . . Unused Backups . | . . . Power . | . . . Propulsion . | . . . Utility . | . . . Weapon . | . . . Tool/Special . | . . . Average Slot Usage (%) 96 | . 96 96 Engine 13 | . 13 14 Treads 25 | . 27 10 Wheel 2 | . . 14 Device 1 | . . 7 Storage 14 | . 14 14 Protection 10 | . 10 6 Ballistic Gun 28 | . 28 28 Peak Build Rating 7 | 6 7 7 Average Rating 6 | 4 6 6 On Entrance 4 | . 6 7 Naked Turns . | . . . Heaviest Build 30 | 10 30 30 Greatest Support 40 | 40 40 10 Greatest Overweight (x) 2 | . 2 2 Average Overweight (x) . | . . 2 Largest Inventory Capacity 15 | 8 15 15 Average Capacity 13 | 6 13 15 Most Carried 6 | 3 6 5 Average Carried 4 | 1 5 4 Final Capacity 15 | 8 15 15 Final Carried 5 | 3 5 4 Class Distribution -------------------- 100% | Mutant Dominant Class ---------------- Mutant | -10/Materials Mutant | -10/Subcaves Resources | -11 -10 -10 ----------- Run | Yrd Mat Sub Matter Collected 444 | 286 158 . Remotely . | . . . Salvage Created 465 | 134 331 . Parts 38 | 7 31 . Haulers Intercepted . | . . . Recyclers Shooed 1 | . 1 . Parts Field Recycled . | . . . Retrieved Matter . | . . . Parts Self-Destructed 5 | . . 5 Prevented . | . . . Kills | -11 -10 -10 ------- Run | Yrd Mat Sub Combat Hostiles Destroyed 10 | . 10 . Guns 10 | . 10 . Classes Destroyed 6 | 2 4 . Worker 1 | . 1 . Builder 5 | . 5 . Tunneler 2 | 2 . . Recycler 1 | 1 . . Swarmer 6 | . 6 . Grunt 4 | . 4 . Best Kill Streak 4 | 3 4 . Combat Bots Only 4 | . 4 . Max Kills in Single Turn 1 | 1 1 . Gunslinging . | . . . Exploded . | . . . Melee . | . . . Uniques/NPCs Destroyed . | . . . Combat | -11 -10 -10 -------- Run | Yrd Mat Sub Hostile Shots Fired 94 | . 55 39 Missed 19 | . 10 9 Hits 75 | . 45 30 Projectile 75 | . 45 30 Critical Strikes 3 | . 3 . Damage Taken 1140 | . 537 603 Core 250 | . 73 177 Absorbed by Shields . | . . . Core Remaining (%) 100 | 100 . . Volleys Fired 89 | 8 63 18 Largest 2 | 2 2 2 Hottest 100 | 40 40 100 Shots Fired 163 | 16 126 21 Gun 162 | 16 126 20 Cannon . | . . . Launcher . | . . . Special 1 | . . 1 Kinetic 162 | 16 126 20 Thermal 1 | . . 1 Explosive . | . . . Electromagnetic . | . . . Robot Hit Streak 10 | 8 10 10 Robot Miss Streak 5 | 1 5 1 Penetration Max . | . . . Secondary Targets 1 | . 1 . Max Gunslinging Chain 1 | . 1 . Shots Hit Robots 111 | 13 81 17 Core Hits 44 | 6 33 5 Critical Kills . | . . . Critical Parts Destroyed . | . . . Critical Strikes . | . . . Melee Attacks . | . . . Impact . | . . . Slashing . | . . . Piercing . | . . . Sneak Attacks . | . . . Combat Hostiles . | . . . Follow-up Attacks . | . . . Damage Inflicted 920 | 108 688 124 Guns 890 | 107 659 124 Cannons . | . . . Explosions . | . . . Melee . | . . . Ramming 30 | 1 29 . Kinetic 890 | 107 659 124 Thermal . | . . . Explosive . | . . . Electromagnetic . | . . . Impact . | . . . Slashing . | . . . Piercing . | . . . Highest Corruption 2 | . 2 2 Average Corruption 2 | . 2 2 Corruption Purged . | . . . Corruption Blocked . | . . . Effects 11 | . 10 1 Message Errors 1 | . 1 . Matter Fused 2 | . 2 . Heat Flow Errors 2 | . 2 . Energy Discharges 1 | . 1 . Parts Fused 1 | . 1 . Data Loss (minor) 1 | . 1 . Data Loss (major) 2 | . 1 1 Alerts 1 | . 1 . Overload Shots . | . . . Overflow Damage 6 | . 6 . Projectiles . | . . . Explosions . | . . . Melee 6 | . 6 . Knockbacks 1 | . 1 . Impact 1 | . 1 . Kinetic . | . . . Secondary . | . . . Self-Inflicted Damage . | . . . Shots . | . . . Rammed 6 | 1 5 . Targets Rammed 6 | 1 5 . Kicked . | . . . Crushed . | . . . Highest Temperature 260 | . 260 . Average Temperature 45 | . 45 . Received Heat Transfer 264 | . 144 120 Siege Activations . | . . . Martial Activations . | . . . Shielding Activations . | . . . Robots Disrupted . | . . . Combat Hostiles . | . . . Robots Corrupted 1 | . 1 . Combat Hostiles . | . . . Parts Fried 1 | . 1 . Impact Corruptions 1 | . 1 . Robots Melted . | . . . Combat Hostiles . | . . . Parts Melted . | . . . Heat Transferred . | . . . Parts Sabotaged . | . . . Parts Stolen . | . . . Parts Stripped . | . . . Power Chain Reactions . | . . . Alert | -11 -10 -10 ------- Run | Yrd Mat Sub Maximum Alert Level . | . . . Low Security (%) 100 | 100 100 . Level 1 . | . . . Level 2 . | . . . Level 3 . | . . . Level 4 . | . . . Level 5 . | . . . High Security . | . . . Max Security . | . . . Peak Influence 120 | 15 120 . Initial . | . . . Average 27 | 2 29 . Influence Increases 340 | 15 325 . Destroy 0b10 Robot/C 200 | . 200 . Destroy 0b10 Robot/NC 45 | 15 30 . Destroy Leader 40 | . 40 . Successful Hack 10 | . 10 . Select Force Hacks 30 | . 30 . Lose Combat Pursuer 15 | . 15 . Influence Decreases 340 | 15 285 40 Entered New Map 20 | . . 20 Time Decay 300 | 15 265 20 Lost Part 20 | . 20 . Squads Dispatched 1 | . 1 . Investigation 1 | . 1 . Extermination . | . . . Reinforcement . | . . . Assault . | . . . Garrison . | . . . Intercept . | . . . Searches Triggered . | . . . Construction Impeded . | . . . Haulers Reinforced . | . . . Active Scanning Responses . | . . . Cargo Convoy Interrupts . | . . . Stealth | -11 -10 -10 --------- Run | Yrd Mat Sub Distress Signals 3 | . 3 . Communications Jammed . | . . . Distress Signals . | . . . Times Spotted 27 | . 23 4 Peak Tracking Total 4 | . 4 4 Tactical Retreats 1 | . 1 . Traps | -11 -10 -10 ------- Run | Yrd Mat Sub Traps Triggered 1 | . 1 . Indirectly . | . . . Trap Hack Attempts . | . . . Triggered . | . . . Disarmed . | . . . Reprogrammed . | . . . Reused . | . . . Traps Extracted . | . . . Installed . | . . . Triggered . | . . . Machines | -11 -10 -10 ---------- Run | Yrd Mat Sub Machines Disabled . | . . . Max in Single Turn . | . . . Machines Repaired . | . . . Machines Dismantled . | . . . Machines Sabotaged . | . . . Overloaded Fab Kills . | . . . Hacking | -11 -10 -10 --------- Run | Yrd Mat Sub Machines Accessed 8 | . 8 . Terminals 6 | . 6 . Fabricators . | . . . Repair Stations . | . . . Recycling Units 2 | . 2 . Scanalyzers . | . . . Garrison Access . | . . . Total Hacks 21 | . 21 . Successful 11 | . 11 . Failed 10 | . 10 . Catastrophic 1 | . 1 . Database Lockouts . | . . . Manual 14 | . 14 . Terminals 15 | . 15 . Fabricators . | . . . Repair Stations . | . . . Recycling Units 6 | . 6 . Scanalyzers . | . . . Garrison Access . | . . . Terminal Hacks 1 | . 1 . Locate Traps 1 | . 1 . Fabricator Hacks . | . . . Repair Station Hacks . | . . . Recycling Unit Hacks 2 | . 2 . Report Inventory 2 | . 2 . Scanalyzer . | . . . Garrison Access Hacks . | . . . Unauthorized Hacks 8 | . 8 . Terminals 7 | . 7 . Botnet 2 | . 2 . Skim 5 | . 5 . Fabricators . | . . . Repair Stations . | . . . Recycling Units 1 | . 1 . Tunnel 1 | . 1 . Scanalyzers . | . . . Garrison Access . | . . . Data Cores Recovered . | . . . Used . | . . . Hacking Detections 6 | . 6 . Full Trace Events 1 | . 1 . Feedback Events . | . . . Feedback Blocked . | . . . Robot Schematics Acquired . | . . . Robots Built . | . . . Authchips . | . . . Time . | . . . Total Robot Build Rating . | . . . Part Schematics Acquired . | . . . Parts Built . | . . . Authchips . | . . . Time . | . . . Total Part Build Rating . | . . . Parts Repaired . | . . . Time . | . . . Parts Recycled . | . . . Recycled Matter . | . . . Retrieved Matter . | . . . Retrieved Components . | . . . Parts Scanalyzed . | . . . Part Schematics Acquired . | . . . Parts Damaged . | . . . Bothacking | -11 -10 -10 ------------ Run | Yrd Mat Sub Used RIF Installer . | . . . Robots Hacked . | . . . Non-combat . | . . . Combat . | . . . Robot Hacks Applied . | . . . Relay Couplers Released . | . . . Fabnet Peak Effective % . | . . . Robots Rewired . | . . . Allies Hacked . | . . . Hacks Repelled . | . . . Allies | -11 -10 -10 -------- Run | Yrd Mat Sub Total Allies . | . . . Largest Group . | . . . Highest-Rated Group . | . . . Highest-Rated Ally . | . . . Total Orders . | . . . Ally Attacks . | . . . Total Damage . | . . . Kills . | . . . Allies Corrupted . | . . . Allies Melted . | . . . Intel | -11 -10 -10 ------- Run | Yrd Mat Sub Active Infowar (turns) 127 | . . 127 Structural 127 | . . 127 Robot Analysis Total . | . . . Derelict Logs Recovered 1 | . . 1 Drone Launches . | . . . Drone Recoveries . | . . . Exploration | -11 -10 -10 ------------- Run | Yrd Mat Sub Turns Passed 1593 | 106 1271 216 Spaces Moved 875 | 47 673 155 Core 1 | 1 . . Treads 709 | 43 666 . Legs . | . . . Wheels 165 | 3 7 155 Hover . | . . . Flight . | . . . Fastest Speed 50 | 50 110 110 Average Speed 150 | 152 159 110 Slowest Speed 160 | 160 160 110 Overloaded Moves . | . . . Propulsion Burnouts . | . . . Robots Hopped . | . . . Potential Cave-ins . | . . . Cave-ins Triggered . | . . . Exploration Rate (%) 36 | 4 88 16 Regions Visited 2 Branch Regions 1 Pre-discovered Areas 3 | . 2 1 Known Exits Taken . | . . . Unknown Exits Taken 2 | 1 1 . Scrap Searched . | . . . Spaces Dug . | . . . Terrain Destroyed . | . . . Melee . | . . . Projectile . | . . . AOE . | . . . Terrain Rammed . | . . . Walls Destroyed . | . . . Machines Disabled . | . . . Actions | -11 -10 -10 --------- Run | Yrd Mat Sub Total 1011 | 65 766 180 Wait 20 | . 18 2 Move 874 | 47 672 155 Hop . | . . . Pick Up 5 | 2 3 . Fast Attach 9 | 7 2 . Attach 3 | . 2 1 Detach 2 | 1 1 . Swap 4 | . . 4 Drop . | . . . Fire 89 | 8 63 18 Melee . | . . . Ram . | . . . Kick . | . . . Crush 5 | . 5 . Escape Stasis . | . . . Rewire . | . . . Trap . | . . . Miscellaneous . | . . . Route ------- -11/Scrapyard -10/Materials (discovered 6 exits: *Mat x3 / *Min x2 / [*Sub]) -10/Subcaves History --------- Turn | Location | Event 10 | -11/Scrapyard | Discovered new exit (range 15) 107 | -11/Scrapyard | Entered Materials 326 | -10/Materials | Build established: Mutant 496 | -10/Materials | Discovered new exit (range 12) 704 | -10/Materials | Discovered new exit (range 14) 791 | -10/Materials | Learned location of 2 exits from Mines 848 | -10/Materials | Discovered new exit (range 9) 867 | -10/Materials | Learned location of 1 exit from Recycling 932 | -10/Materials | Identified exit to Materials 932 | -10/Materials | Identified exit to Mines 985 | -10/Materials | Learned location of 2 exits from Materials 1026 | -10/Materials | Learned location of Mines (-10) 1099 | -10/Materials | Loaded intel: 2 recycling unit locations 1152 | -10/Materials | Loaded intel: 32 trap records 1307 | -10/Materials | Derelicts attacked the area 1378 | -10/Materials | Entered Subcaves 1379 | -10/Subcaves | Approached by a straggling Scientist 1537 | -10/Subcaves | Ambushed by Subdwellers from Twisted Machinery 1579 | -10/Subcaves | Core integrity fell below 50% 1584 | -10/Subcaves | Core integrity fell below 20% 1594 | -10/Subcaves | Destroyed by OT-Y6Z(R) with Subdweller Laser Last Messages --------------- LOCATION=UNKNOWN AMBIENT_HEAT=-10 GOAL=ESCAPE 01379_ MJ-QAC(c): "Thank the algorithms! I was beginning to lose hope I'd never make it past all the Subs lurking out here." 01382_ MJ-QAC(c): "Hey, let me tag along and I can get us both out of this nasty situation. At least I think I can... The group I got separated from was talking about a shortcut back to the UFD." MJ-QAC(c): "I think it's somewhere northwest of here" 01469_ System corrupted: Substantial component data lost. MJ-QAC(c): "I think it's somewhere northwest of here" 01488_ Acquired derelict log, extracted data. World map updated: -10/Materials. MJ-QAC(c): "I think it's somewhere northwest of here" 01542_ Lgt. Treads destroyed. 01580_ Lgt. Armor Plating destroyed. MJ-QAC(c): "I think it's somewhere north of here" 01588_ 81-OGS(R) destroyed. 01590_ Ion Engine destroyed. 01592_ Lgt. Armor Plating destroyed. Map ----- +----------------------------------------------------+ | ?????????????????????????????????????????????????? | | ?????????????????????????????????????????????????? | | ?????????????????????????????????????????????????? | | ?????????????????????????????????????????????????? | | ?????????????????????????????????????????????????? | | ?????????????????????????????????????????????????? | | ?????????????????????????????????????????????????? | | ?????????????????????????????????????????????????? | | ?????????????????????????????????????????????????? | | ?????????????????????????????????????????????????? | | ?????????????????????????????????????????????????? | | ?????????????????????????????????????????????????? | | ???????????????????????????## "???????? #??????? | | ???????????????????????????## ??????# ##??????? | | ???????????????????????????## ??????## ####???? | | ???????????????????????????## ????## ####???? | | ???????????????????????????## ???#### # ##???? | | ???????????????????????????## #?### ???? | | ???????????????????????????### ##?## ??????? | | ???????????????????????????### #?## ??????? | | ???????????????????????????## " #### ###?????? | | ???????????????????????????##" ##### ####????? | | ?????????????????????????##### #### ###????? | | ???????????????????# ???## #?## ### ##????? | | ???????????????????# ""##R ##### #####???? | | ???????????????????#""" @ #### ######### | | ???????????????????#""""R## &%=## ###### | | ??????????????????# """"## &R ## | | ????????????????"" """" | | ???????????????? " """"" # ## | | ?????????????????? # """""#### # ### # | | ?????????????????####?""""##### ## #### ## | | ?????????????????????? ""#???## ## ### ## | | ???????????????????????"#????### ### # ### ## | | ?????????????????????????????### ### ## #### | | ??????????????????????????????## ### # # ##### | | ?????????????????????????????? # # ### ###### | | ?????????????????????????????? ### ##### | | ????????????????????????????? ####?###?## ## | | ????????????????????????????? #####??????## #### | | ????????????????????????????? ###?????????## #### | | ????????????????????????????? #??????????####### | | ??????????????????????????????????????????####?### | | ???????????????????????????????????????????????## | | ????????????????????????????????????????????##### | | ????????????????????????????????????????????##### | | ????????????????????????????????????????????## | | ????????????????????????????????????????????### | | ????????????????????????????????????????????#### | | ?????????????????????????????????????????????#### | +----------------------------------------------------+ Best States ------------- Heat Dissipation 25 Energy Generation 10 Energy Capacity 250 Matter Stores 300 Matter Capacity 300 Sight Range 16 Terrain Scan Density 10 Armor Coverage 150 Evasion (%) 40 Recoil Reduction 2 Item Schematics ----------------- None Robot Schematics ------------------ None Fabricated ------------ Nothing Repaired ---------- Nothing Alien Tech Used ----------------- None Achievements -------------- None Challenges ------------ None Game ------ Seed CloakingBackupTrident Manual? 0 Play Time 00:08:32 Cumulative 151.7 hours Start 2025.07.14 @ 17:31:00 End 2025.07.14 @ 17:38:19 Sessions 1 Manual Loads 0 Difficulty Rogue Special Mode None Game No. 173 Rogue 173 Adventurer 0 Explorer 0 Win Type - Total 3 Types 1/0/0/1/0/0/0/0/0/1 Lore% 65 Gallery% 61 Achievement% 53 Wizard Run 0 Options --------- Layout 1 ASCII 0 Keyboard 1 Movement Numpad Keybinds 0 Fullscreen 1 Font 32/SmallcapsGlow Map View 77x35 Zoom Use 0% Tactical HUD 1 Map Filters NONE Filters NONE Steam 1 RUN: cc40fb70-2d17-4601-9ec5-e0e654c694be